[Event "*** SCC Grand Prix: Titled Tuesday Blitz"]
[Site "Chess.com"]
[Date "2020.08.04"]
[Round "6"]
[White "vovachesss"]
[Black "Flopezin"]
[Result "0-1"]
[WhiteElo "2576"]
[BlackElo "2354"]
[TimeControl "180+1"]
[EndTime "14:51:00 PDT"]
[Termination "Flopezin won by resignation"]

1. e4 {[%clk 0:03:00.9]} 1... e5 {[%clk 0:02:57.4]} 2. Nf3 {[%clk 0:03:00.2]}
2... Nc6 {[%clk 0:02:53.6]} 3. Nc3 {[%clk 0:02:59.3]} 3... Nf6 {[%clk
0:02:52.5]} 4. Nxe5 {[%clk 0:02:59.2]} 4... Nxe5 {[%clk 0:02:50.3]} 5. d4 {[%clk
0:02:59.8]} 5... Nc6 {[%clk 0:02:47.6]} 6. e5 {[%clk 0:03:00.7]} 6... Ng8 {[%clk
0:02:46.8]} 7. Bc4 {[%clk 0:03:00.6]} 7... Bb4 {[%clk 0:02:43]} 8. Qf3 {[%clk
0:02:59.3]} 8... f6 {[%clk 0:02:33.7]} 9. Be3 {[%clk 0:02:53.1]} 9... d6 {[%clk
0:02:19.8]} 10. O-O-O {[%clk 0:02:40.3]} 10... Bxc3 {[%clk 0:02:14.7]} 11. bxc3
{[%clk 0:02:40.4]} 11... Na5 {[%clk 0:02:05.5]} 12. exf6 {[%clk 0:02:26.4]}
12... Nxf6 {[%clk 0:02:02]} 13. Bd3 {[%clk 0:01:58.3]} 13... O-O {[%clk
0:02:00.8]} 14. Bg5 {[%clk 0:01:54.7]} 14... h6 {[%clk 0:01:42.3]} 15. Bxf6
{[%clk 0:01:54.1]} 15... Qxf6 {[%clk 0:01:35.8]} 16. Qd5+ {[%clk 0:01:54.5]}
16... Be6 {[%clk 0:01:34.8]} 17. Qxa5 {[%clk 0:01:55.4]} 17... Qxf2 {[%clk
0:01:34.9]} 18. Qxc7 {[%clk 0:01:52.8]} 18... Bxa2 {[%clk 0:01:34.2]} 19. c4
{[%clk 0:01:46.5]} 19... Rac8 {[%clk 0:01:32.4]} 20. Qxd6 {[%clk 0:01:32.5]}
20... Bxc4 {[%clk 0:01:32.5]} 21. Rhf1 {[%clk 0:01:07.9]} 21... Qe3+ {[%clk
0:01:25.3]} 22. Kb2 {[%clk 0:01:06.1]} 22... Bxd3 {[%clk 0:01:22.5]} 23. Rxd3
{[%clk 0:00:59]} 23... Rxc2+ {[%clk 0:01:08]} 24. Kxc2 {[%clk 0:00:54.2]} 24...
Qe2+ {[%clk 0:01:08.4]} 25. Rd2 {[%clk 0:00:51.5]} 25... Qc4+ {[%clk 0:01:08.8]}
26. Kb2 {[%clk 0:00:51.1]} 26... Rxf1 {[%clk 0:01:08]} 27. Rc2 {[%clk 0:00:38]}
27... Qb5+ {[%clk 0:01:06.5]} 28. Kc3 {[%clk 0:00:38.5]} 28... Rd1 {[%clk
0:00:58.2]} 29. Qe6+ {[%clk 0:00:35.6]} 29... Kh8 {[%clk 0:00:54.1]} 30. Qe4
{[%clk 0:00:23.5]} 30... Qa5+ {[%clk 0:00:50.5]} 31. Kc4 {[%clk 0:00:20.4]}
31... b5+ {[%clk 0:00:48.3]} 32. Kd5 {[%clk 0:00:19.9]} 32... Qd8+ {[%clk
0:00:48.1]} 33. Kc5 {[%clk 0:00:16]} 33... a6 {[%clk 0:00:47.2]} 34. Kc6 {[%clk
0:00:14]} 34... Rf1 {[%clk 0:00:44.5]} 35. d5 {[%clk 0:00:08.6]} 35... Qc8+
{[%clk 0:00:37.6]} 36. Kb6 {[%clk 0:00:05]} 36... Rf6+ {[%clk 0:00:34.7]} 37.
Rc6 {[%clk 0:00:03.7]} 37... b4 {[%clk 0:00:18.4]} 38. Rxf6 {[%clk 0:00:02.4]}
38... gxf6 {[%clk 0:00:17.7]} 39. d6 {[%clk 0:00:03]} 39... Qd8+ {[%clk
0:00:17.6]} 40. Kc6 {[%clk 0:00:03.1]} 40... Qa8+ {[%clk 0:00:17.6]} 41. Kc7
{[%clk 0:00:03.6]} 41... Qxe4 {[%clk 0:00:17.8]} 42. d7 {[%clk 0:00:04.5]} 42...
Qc4+ {[%clk 0:00:18.2]} 43. Kb8 {[%clk 0:00:03.7]} 43... Qb5+ {[%clk 0:00:16.4]}
44. Kc8 {[%clk 0:00:03.6]} 44... Qxd7+ {[%clk 0:00:17.3]} 45. Kxd7 {[%clk
0:00:03.7]} 45... b3 {[%clk 0:00:18.2]} 0-1

[Event "*** SCC Grand Prix: Titled Tuesday Blitz"]
[Site "Chess.com"]
[Date "2020.08.04"]
[Round "6"]
[White "mortngabriel"]
[Black "Bastiandash"]
[Result "0-1"]
[WhiteElo "2418"]
[BlackElo "2321"]
[TimeControl "180+1"]
[EndTime "14:51:03 PDT"]
[Termination "Bastiandash won by checkmate"]

1. e4 {[%clk 0:02:20.3]} 1... c5 {[%clk 0:02:59.5]} 2. Nf3 {[%clk 0:02:19.5]}
2... e6 {[%clk 0:02:59.8]} 3. Nc3 {[%clk 0:02:04.3]} 3... a6 {[%clk 0:02:58.9]}
4. d4 {[%clk 0:02:04.8]} 4... cxd4 {[%clk 0:02:59.8]} 5. Nxd4 {[%clk 0:02:05.7]}
5... b5 {[%clk 0:02:57.8]} 6. Bd3 {[%clk 0:02:05.9]} 6... Qb6 {[%clk 0:02:56.8]}
7. Nb3 {[%clk 0:02:03.6]} 7... Qc7 {[%clk 0:02:56.9]} 8. O-O {[%clk 0:02:03.2]}
8... Bb7 {[%clk 0:02:57.4]} 9. Bd2 {[%clk 0:02:03.3]} 9... Nf6 {[%clk
0:02:57.9]} 10. Qe2 {[%clk 0:02:03.6]} 10... d6 {[%clk 0:02:58.2]} 11. Rae1
{[%clk 0:02:03.7]} 11... Nbd7 {[%clk 0:02:58.3]} 12. f4 {[%clk 0:02:03.9]} 12...
Rc8 {[%clk 0:02:58.8]} 13. e5 {[%clk 0:02:02.9]} 13... Nd5 {[%clk 0:02:50.7]}
14. Nxd5 {[%clk 0:01:41.5]} 14... Bxd5 {[%clk 0:02:51.6]} 15. Qh5 {[%clk
0:01:41.9]} 15... g6 {[%clk 0:02:37.2]} 16. Qe2 {[%clk 0:01:40.2]} 16... Bg7
{[%clk 0:01:57.3]} 17. Bc3 {[%clk 0:01:17.7]} 17... O-O {[%clk 0:01:30.8]} 18.
h4 {[%clk 0:00:49.7]} 18... b4 {[%clk 0:01:09.5]} 19. Bd4 {[%clk 0:00:43.9]}
19... a5 {[%clk 0:01:05.4]} 20. h5 {[%clk 0:00:39.5]} 20... a4 {[%clk
0:00:50.6]} 21. Nd2 {[%clk 0:00:36.3]} 21... Nc5 {[%clk 0:00:35.7]} 22. Nf3
{[%clk 0:00:15]} 22... Nxd3 {[%clk 0:00:34]} 23. cxd3 {[%clk 0:00:14.5]} 23...
Qc2 {[%clk 0:00:26.2]} 24. Qe3 {[%clk 0:00:08.7]} 24... Qc6 {[%clk 0:00:19.5]}
25. exd6 {[%clk 0:00:06.8]} 25... Qxd6 {[%clk 0:00:19.3]} 26. Bxg7 {[%clk
0:00:06.2]} 26... Kxg7 {[%clk 0:00:20.2]} 27. Qe5+ {[%clk 0:00:05.3]} 27... Qxe5
{[%clk 0:00:20.2]} 28. fxe5 {[%clk 0:00:05.2]} 28... Rc2 {[%clk 0:00:19.6]} 29.
Ng5 {[%clk 0:00:04.3]} 29... Rxg2+ {[%clk 0:00:19.2]} 30. Kh1 {[%clk 0:00:04.3]}
30... Rxg5+ {[%clk 0:00:19.8]} 31. Kh2 {[%clk 0:00:04.5]} 31... Rxh5+ {[%clk
0:00:20.1]} 32. Kg3 {[%clk 0:00:05.2]} 32... Rg5+ {[%clk 0:00:20.7]} 33. Kf4
{[%clk 0:00:06]} 33... Rf5+ {[%clk 0:00:20.7]} 34. Ke3 {[%clk 0:00:06.9]} 34...
Rxf1 {[%clk 0:00:21.6]} 35. Kd4 {[%clk 0:00:07.6]} 35... Rc8 {[%clk 0:00:22.5]}
36. Rxf1 {[%clk 0:00:07.5]} 36... Rc2 {[%clk 0:00:21.5]} 37. a3 {[%clk
0:00:05.9]} 37... bxa3 {[%clk 0:00:21.5]} 38. bxa3 {[%clk 0:00:06.8]} 38... Ra2
{[%clk 0:00:22]} 39. Rc1 {[%clk 0:00:04]} 39... Rxa3 {[%clk 0:00:22]} 40. Rc5
{[%clk 0:00:04.3]} 40... Ra2 {[%clk 0:00:22.1]} 41. Ra5 {[%clk 0:00:04.5]} 41...
Ra1 {[%clk 0:00:21.7]} 42. Ra7 {[%clk 0:00:03.9]} 42... a3 {[%clk 0:00:22]} 43.
Ra5 {[%clk 0:00:03.2]} 43... a2 {[%clk 0:00:22.4]} 44. Rxd5 {[%clk 0:00:03.4]}
44... exd5 {[%clk 0:00:22.1]} 45. Kxd5 {[%clk 0:00:04.3]} 45... Rd1 {[%clk
0:00:22]} 46. d4 {[%clk 0:00:05.2]} 46... a1=Q {[%clk 0:00:21.5]} 47. Kd6 {[%clk
0:00:06.1]} 47... Qxd4+ {[%clk 0:00:21.6]} 48. Ke7 {[%clk 0:00:07]} 48... Qd7#
{[%clk 0:00:20.4]} 0-1

[Event "*** SCC Grand Prix: Titled Tuesday Blitz"]
[Site "Chess.com"]
[Date "2020.08.04"]
[Round "6"]
[White "DanielRensch"]
[Black "Sn00pPawn"]
[Result "1-0"]
[WhiteElo "2566"]
[BlackElo "1991"]
[TimeControl "180+1"]
[EndTime "14:51:07 PDT"]
[Termination "DanielRensch won by resignation"]

1. e4 {[%clk 0:02:59.3]} 1... c5 {[%clk 0:02:59.5]} 2. Nf3 {[%clk 0:02:58.5]}
2... d6 {[%clk 0:02:59.5]} 3. d4 {[%clk 0:02:57.1]} 3... cxd4 {[%clk 0:03:00.4]}
4. Nxd4 {[%clk 0:02:57.4]} 4... Nf6 {[%clk 0:03:00.7]} 5. Nc3 {[%clk 0:02:57.9]}
5... a6 {[%clk 0:03:01.1]} 6. Be3 {[%clk 0:02:58.3]} 6... Ng4 {[%clk 0:03:00.5]}
7. Bc1 {[%clk 0:02:58.1]} 7... Nf6 {[%clk 0:03:00.3]} 8. Be3 {[%clk 0:02:58.2]}
8... Ng4 {[%clk 0:03:00.3]} 9. Bg5 {[%clk 0:02:58.5]} 9... h6 {[%clk 0:03:00.4]}
10. Bh4 {[%clk 0:02:58.1]} 10... g5 {[%clk 0:03:00.6]} 11. Bg3 {[%clk 0:02:58]}
11... Bg7 {[%clk 0:03:00.7]} 12. Qd2 {[%clk 0:02:58.5]} 12... Nc6 {[%clk
0:02:55.4]} 13. Nf5 {[%clk 0:02:56.9]} 13... Bxf5 {[%clk 0:02:31.6]} 14. exf5
{[%clk 0:02:57.8]} 14... Qa5 {[%clk 0:02:31.2]} 15. h3 {[%clk 0:02:47.6]} 15...
Bxc3 {[%clk 0:02:22.6]} 16. bxc3 {[%clk 0:02:38.3]} 16... Nf6 {[%clk 0:02:21.9]}
17. Bd3 {[%clk 0:02:28.1]} 17... Rc8 {[%clk 0:02:14]} 18. O-O {[%clk 0:02:21]}
18... Ne5 {[%clk 0:01:56.5]} 19. Rfe1 {[%clk 0:02:14.2]} 19... O-O {[%clk
0:01:44.6]} 20. h4 {[%clk 0:02:01.9]} 20... Nh7 {[%clk 0:01:12.7]} 21. hxg5
{[%clk 0:01:42.9]} 21... hxg5 {[%clk 0:01:12.1]} 22. f6 {[%clk 0:01:40.9]} 22...
exf6 {[%clk 0:00:49.9]} 23. Bxh7+ {[%clk 0:01:36.8]} 23... Kxh7 {[%clk
0:00:48.3]} 24. Qxd6 {[%clk 0:01:37.7]} 24... Ng4 {[%clk 0:00:25]} 25. f3 {[%clk
0:00:42.3]} 25... Nh6 {[%clk 0:00:25]} 26. Qxf6 {[%clk 0:00:37.2]} 26... Qf5
{[%clk 0:00:24.9]} 27. Qd4 {[%clk 0:00:29.1]} 27... Rfd8 {[%clk 0:00:24.2]} 28.
Qe5 {[%clk 0:00:19.2]} 28... Qxe5 {[%clk 0:00:17.6]} 29. Rxe5 {[%clk 0:00:20.1]}
29... Kg6 {[%clk 0:00:16.2]} 30. Rae1 {[%clk 0:00:18.7]} 30... Rd7 {[%clk
0:00:13.9]} 31. Re7 {[%clk 0:00:15.3]} 31... Rcd8 {[%clk 0:00:13]} 32. Bf2
{[%clk 0:00:12.4]} 32... Nf5 {[%clk 0:00:11.6]} 33. Rxd7 {[%clk 0:00:12.3]}
33... Rxd7 {[%clk 0:00:11.6]} 34. Rb1 {[%clk 0:00:12.3]} 34... Rc7 {[%clk
0:00:11]} 35. Rb3 {[%clk 0:00:11.9]} 35... b5 {[%clk 0:00:10.9]} 36. g4 {[%clk
0:00:11.4]} 36... Nd6 {[%clk 0:00:11]} 37. Kf1 {[%clk 0:00:12]} 37... Rc4 {[%clk
0:00:10.8]} 38. Bd4 {[%clk 0:00:12]} 38... Nb7 {[%clk 0:00:10.3]} 39. Rb4 {[%clk
0:00:11.6]} 39... Na5 {[%clk 0:00:09.7]} 40. a3 {[%clk 0:00:11]} 40... Nc6
{[%clk 0:00:08.5]} 41. Rxc4 {[%clk 0:00:11]} 41... bxc4 {[%clk 0:00:09.4]} 42.
Ke2 {[%clk 0:00:10.8]} 42... f6 {[%clk 0:00:10.1]} 43. Ke3 {[%clk 0:00:11]}
43... Kf7 {[%clk 0:00:10.6]} 44. Ke4 {[%clk 0:00:11.1]} 44... Ke6 {[%clk
0:00:11]} 45. Bb6 {[%clk 0:00:11.3]} 45... a5 {[%clk 0:00:09.8]} 46. Bc7 {[%clk
0:00:10.1]} 46... a4 {[%clk 0:00:09.4]} 47. Bb6 {[%clk 0:00:10.2]} 47... Kf7
{[%clk 0:00:08]} 48. Kd5 {[%clk 0:00:09.9]} 1-0

[Event "*** SCC Grand Prix: Titled Tuesday Blitz"]
[Site "Chess.com"]
[Date "2020.08.04"]
[Round "6"]
[White "XDPS"]
[Black "VincentKeymer"]
[Result "1/2-1/2"]
[WhiteElo "2693"]
[BlackElo "2874"]
[TimeControl "180+1"]
[EndTime "14:51:08 PDT"]
[Termination "Game drawn by repetition"]

1. e4 {[%clk 0:03:00.9]} 1... c6 {[%clk 0:03:00.1]} 2. Nf3 {[%clk 0:03:00.8]}
2... d5 {[%clk 0:03:01]} 3. Nc3 {[%clk 0:03:01.2]} 3... dxe4 {[%clk 0:03:01.3]}
4. Nxe4 {[%clk 0:03:02.1]} 4... Nf6 {[%clk 0:03:02.1]} 5. Qe2 {[%clk 0:03:02.1]}
5... Nxe4 {[%clk 0:03:02.4]} 6. Qxe4 {[%clk 0:03:02.1]} 6... Nd7 {[%clk
0:03:03.3]} 7. Bc4 {[%clk 0:03:01.5]} 7... Nf6 {[%clk 0:03:03.6]} 8. Ne5 {[%clk
0:03:01.8]} 8... e6 {[%clk 0:03:04.2]} 9. Qe2 {[%clk 0:03:01.7]} 9... b5 {[%clk
0:03:04.8]} 10. Bb3 {[%clk 0:03:01.4]} 10... Qc7 {[%clk 0:03:04.7]} 11. O-O
{[%clk 0:03:01.2]} 11... Bd6 {[%clk 0:03:04.9]} 12. d4 {[%clk 0:03:01.4]} 12...
O-O {[%clk 0:03:05.4]} 13. Bf4 {[%clk 0:02:56.6]} 13... a5 {[%clk 0:03:04.5]}
14. a3 {[%clk 0:02:44]} 14... c5 {[%clk 0:02:42.6]} 15. dxc5 {[%clk 0:02:24.5]}
15... Qxc5 {[%clk 0:02:43.5]} 16. Rfd1 {[%clk 0:02:19.8]} 16... Bc7 {[%clk
0:02:42.8]} 17. a4 {[%clk 0:02:13.4]} 17... b4 {[%clk 0:02:38]} 18. Nd3 {[%clk
0:01:52.2]} 18... Qe7 {[%clk 0:02:36.1]} 19. Bxc7 {[%clk 0:01:52.5]} 19... Qxc7
{[%clk 0:02:37]} 20. Qe5 {[%clk 0:01:52.9]} 20... Qb6 {[%clk 0:01:58.9]} 21. Nc5
{[%clk 0:01:47.6]} 21... Bb7 {[%clk 0:01:46.6]} 22. Rd6 {[%clk 0:01:42.7]} 22...
Qa7 {[%clk 0:01:44]} 23. Rad1 {[%clk 0:01:11.5]} 23... Bd5 {[%clk 0:01:40.8]}
24. Qd4 {[%clk 0:00:22.9]} 24... Rad8 {[%clk 0:01:25]} 25. Rxd8 {[%clk
0:00:17.9]} 25... Rxd8 {[%clk 0:01:25.9]} 26. Nxe6 {[%clk 0:00:10.1]} 26... Qxd4
{[%clk 0:01:25.7]} 27. Nxd4 {[%clk 0:00:10]} 27... Bxb3 {[%clk 0:01:22.2]} 28.
cxb3 {[%clk 0:00:10.9]} 28... Ng4 {[%clk 0:00:35]} 29. Rc1 {[%clk 0:00:07.8]}
29... h6 {[%clk 0:00:27.5]} 30. Nc6 {[%clk 0:00:07.4]} 30... Rd2 {[%clk
0:00:23.7]} 31. Nxa5 {[%clk 0:00:04.5]} 31... Rxb2 {[%clk 0:00:20]} 32. f3
{[%clk 0:00:03.2]} 32... Ne3 {[%clk 0:00:19.6]} 33. g3 {[%clk 0:00:03.8]} 33...
Rg2+ {[%clk 0:00:13]} 34. Kh1 {[%clk 0:00:04.3]} 34... Rb2 {[%clk 0:00:13.6]}
35. Nc4 {[%clk 0:00:04.8]} 35... Rxb3 {[%clk 0:00:12.9]} 36. Nxe3 {[%clk
0:00:04.3]} 36... Rxe3 {[%clk 0:00:13.8]} 37. Rc8+ {[%clk 0:00:04.9]} 37... Kh7
{[%clk 0:00:13.7]} 38. Rb8 {[%clk 0:00:05.8]} 38... b3 {[%clk 0:00:12.9]} 39.
Kg2 {[%clk 0:00:06.4]} 39... Re2+ {[%clk 0:00:10.2]} 40. Kh3 {[%clk 0:00:06.9]}
40... Re3 {[%clk 0:00:09.3]} 41. f4 {[%clk 0:00:06.2]} 41... Re4 {[%clk
0:00:03.8]} 42. Rxb3 {[%clk 0:00:05.7]} 42... Rxa4 {[%clk 0:00:04]} 43. Rb7
{[%clk 0:00:06.1]} 43... Kg8 {[%clk 0:00:03.8]} 44. Rb8+ {[%clk 0:00:06.2]}
44... Kh7 {[%clk 0:00:04.2]} 45. Rb7 {[%clk 0:00:06.8]} 45... Kg8 {[%clk
0:00:04.7]} 46. Rb8+ {[%clk 0:00:07.1]} 46... Kh7 {[%clk 0:00:05.2]} 47. Rb7
{[%clk 0:00:07.7]} 1/2-1/2

[Event "*** SCC Grand Prix: Titled Tuesday Blitz"]
[Site "Chess.com"]
[Date "2020.08.04"]
[Round "6"]
[White "StockholmMissile"]
[Black "anpospan"]
[Result "0-1"]
[WhiteElo "2450"]
[BlackElo "2332"]
[TimeControl "180+1"]
[EndTime "14:51:08 PDT"]
[Termination "anpospan won by resignation"]

1. d4 {[%clk 0:03:00.9]} 1... Nf6 {[%clk 0:02:59.1]} 2. c4 {[%clk 0:03:00.4]}
2... e6 {[%clk 0:02:58.9]} 3. Nf3 {[%clk 0:03:00.2]} 3... c5 {[%clk 0:02:58.8]}
4. d5 {[%clk 0:02:58.6]} 4... exd5 {[%clk 0:02:58.8]} 5. cxd5 {[%clk 0:02:58.5]}
5... d6 {[%clk 0:02:59.3]} 6. Nc3 {[%clk 0:02:58.6]} 6... g6 {[%clk 0:02:59.7]}
7. h3 {[%clk 0:02:59.2]} 7... Bg7 {[%clk 0:02:59.9]} 8. e4 {[%clk 0:02:59.8]}
8... a6 {[%clk 0:02:59.7]} 9. a4 {[%clk 0:02:58.8]} 9... O-O {[%clk 0:02:59.5]}
10. Bd3 {[%clk 0:02:59.3]} 10... Nbd7 {[%clk 0:02:59.6]} 11. O-O {[%clk
0:02:59.1]} 11... h6 {[%clk 0:02:59.7]} 12. Bf4 {[%clk 0:02:59.1]} 12... Qe7
{[%clk 0:02:59.6]} 13. Re1 {[%clk 0:02:58.5]} 13... g5 {[%clk 0:02:59.5]} 14.
Bh2 {[%clk 0:02:45.8]} 14... g4 {[%clk 0:02:58.8]} 15. hxg4 {[%clk 0:02:45.5]}
15... Nxg4 {[%clk 0:02:58.2]} 16. Bg3 {[%clk 0:02:46.1]} 16... Nde5 {[%clk
0:02:58.3]} 17. Nxe5 {[%clk 0:02:42.4]} 17... Bxe5 {[%clk 0:02:58.1]} 18. Be2
{[%clk 0:02:25.1]} 18... h5 {[%clk 0:02:58]} 19. Bxg4 {[%clk 0:02:16.2]} 19...
hxg4 {[%clk 0:02:57.9]} 20. Qd3 {[%clk 0:02:13.7]} 20... Bd7 {[%clk 0:02:49.5]}
21. Re3 {[%clk 0:02:07.2]} 21... b5 {[%clk 0:02:39]} 22. Bxe5 {[%clk 0:02:01]}
22... Qxe5 {[%clk 0:02:31.6]} 23. Rg3 {[%clk 0:01:55]} 23... b4 {[%clk
0:02:02.2]} 24. Nd1 {[%clk 0:01:36.3]} 24... Rfe8 {[%clk 0:01:35.8]} 25. Re3
{[%clk 0:01:07.6]} 25... f5 {[%clk 0:01:18.4]} 26. exf5 {[%clk 0:01:04.9]} 26...
Qxf5 {[%clk 0:01:17.5]} 27. Qd2 {[%clk 0:01:01.2]} 27... Re5 {[%clk 0:00:59]}
28. Rg3 {[%clk 0:00:55.6]} 28... Rxd5 {[%clk 0:00:37]} 29. Qh6 {[%clk 0:00:55]}
29... Qg5 {[%clk 0:00:22.6]} 30. Qxg5+ {[%clk 0:00:24.3]} 30... Rxg5 {[%clk
0:00:21.8]} 31. Ne3 {[%clk 0:00:25.2]} 31... d5 {[%clk 0:00:20.9]} 32. a5 {[%clk
0:00:21.4]} 32... d4 {[%clk 0:00:20.6]} 33. Nc4 {[%clk 0:00:21.6]} 33... Bb5
{[%clk 0:00:19.5]} 34. Nd6 {[%clk 0:00:21.3]} 34... Rd8 {[%clk 0:00:18.3]} 35.
Nxb5 {[%clk 0:00:16.6]} 35... axb5 {[%clk 0:00:18.4]} 36. a6 {[%clk 0:00:17.1]}
36... Ra8 {[%clk 0:00:18.3]} 37. f3 {[%clk 0:00:15.3]} 37... Rg6 {[%clk
0:00:16.9]} 38. a7 {[%clk 0:00:12.8]} 38... Rg7 {[%clk 0:00:16.6]} 39. Rxg4
{[%clk 0:00:12.6]} 39... Rxg4 {[%clk 0:00:16.3]} 40. fxg4 {[%clk 0:00:13.5]}
40... c4 {[%clk 0:00:15.3]} 41. Kf2 {[%clk 0:00:12.6]} 41... b3 {[%clk
0:00:13.8]} 42. Ke2 {[%clk 0:00:12.2]} 42... c3 {[%clk 0:00:13.8]} 43. bxc3
{[%clk 0:00:11]} 43... dxc3 {[%clk 0:00:13.1]} 44. Kd3 {[%clk 0:00:11.4]} 44...
b2 {[%clk 0:00:13.2]} 45. Rb1 {[%clk 0:00:06.9]} 45... b4 {[%clk 0:00:13.4]} 46.
Kc2 {[%clk 0:00:05.7]} 46... Rxa7 {[%clk 0:00:13.2]} 47. Re1 {[%clk 0:00:05.2]}
47... Ra1 {[%clk 0:00:12.9]} 0-1

[Event "*** SCC Grand Prix: Titled Tuesday Blitz"]
[Site "Chess.com"]
[Date "2020.08.04"]
[Round "6"]
[White "diablanni"]
[Black "1f3_2g41-0"]
[Result "1-0"]
[WhiteElo "2329"]
[BlackElo "2421"]
[TimeControl "180+1"]
[EndTime "14:51:08 PDT"]
[Termination "diablanni won on time"]

1. e4 {[%clk 0:02:59.9]} 1... c5 {[%clk 0:02:58.9]} 2. Nf3 {[%clk 0:02:59.1]}
2... d6 {[%clk 0:02:59]} 3. Bb5+ {[%clk 0:02:58.6]} 3... Bd7 {[%clk 0:02:58.9]}
4. Bxd7+ {[%clk 0:02:58.4]} 4... Qxd7 {[%clk 0:02:59.8]} 5. c4 {[%clk
0:02:58.1]} 5... Nf6 {[%clk 0:02:59.8]} 6. Nc3 {[%clk 0:02:57.2]} 6... Nc6
{[%clk 0:03:00.5]} 7. d4 {[%clk 0:02:56.6]} 7... cxd4 {[%clk 0:03:01.4]} 8. Nxd4
{[%clk 0:02:57.1]} 8... g6 {[%clk 0:03:01.9]} 9. b3 {[%clk 0:02:53.6]} 9... Bg7
{[%clk 0:03:02]} 10. Bb2 {[%clk 0:02:54]} 10... O-O {[%clk 0:03:01.5]} 11. O-O
{[%clk 0:02:53.2]} 11... Ng4 {[%clk 0:02:49]} 12. Nxc6 {[%clk 0:02:41.6]} 12...
bxc6 {[%clk 0:02:49.9]} 13. h3 {[%clk 0:02:40]} 13... Nf6 {[%clk 0:02:46.5]} 14.
Qf3 {[%clk 0:02:35.6]} 14... Qc7 {[%clk 0:02:40.3]} 15. Na4 {[%clk 0:02:26.8]}
15... Nd7 {[%clk 0:02:28.6]} 16. Bxg7 {[%clk 0:02:23.9]} 16... Kxg7 {[%clk
0:02:29.5]} 17. c5 {[%clk 0:02:20.3]} 17... dxc5 {[%clk 0:02:24.1]} 18. Nxc5
{[%clk 0:02:18.3]} 18... Ne5 {[%clk 0:02:15.4]} 19. Qc3 {[%clk 0:02:17.4]} 19...
Kg8 {[%clk 0:02:12.4]} 20. Rad1 {[%clk 0:02:14.9]} 20... Rfd8 {[%clk 0:02:10.7]}
21. Na6 {[%clk 0:02:06.7]} 21... Qb6 {[%clk 0:01:48.1]} 22. Qxe5 {[%clk
0:01:47.8]} 22... Qxa6 {[%clk 0:01:40.5]} 23. Qxe7 {[%clk 0:01:44.1]} 23... Re8
{[%clk 0:01:36.8]} 24. Qf6 {[%clk 0:01:38.7]} 24... Qxa2 {[%clk 0:01:35.9]} 25.
Rd3 {[%clk 0:01:36.1]} 25... Rxe4 {[%clk 0:01:27.8]} 26. Rfd1 {[%clk 0:01:19.2]}
26... Rae8 {[%clk 0:01:23.8]} 27. Qxc6 {[%clk 0:01:10.5]} 27... Re2 {[%clk
0:01:15.9]} 28. Rf3 {[%clk 0:01:01.2]} 28... Qa5 {[%clk 0:01:02.9]} 29. Rd7
{[%clk 0:00:44.6]} 29... Re1+ {[%clk 0:00:58.8]} 30. Kh2 {[%clk 0:00:44.5]}
30... Qe5+ {[%clk 0:00:58.5]} 31. g3 {[%clk 0:00:44.3]} 31... Re7 {[%clk
0:00:26.1]} 32. Qa8+ {[%clk 0:00:17.8]} 32... Kg7 {[%clk 0:00:23.4]} 33. Rxa7
{[%clk 0:00:14.4]} 33... Rxa7 {[%clk 0:00:15.1]} 34. Qxa7 {[%clk 0:00:14.3]}
34... Qd5 {[%clk 0:00:15.7]} 35. Kg2 {[%clk 0:00:10.6]} 35... g5 {[%clk
0:00:11.3]} 36. Qa4 {[%clk 0:00:04.3]} 36... h5 {[%clk 0:00:10.1]} 37. Qc4
{[%clk 0:00:04.2]} 37... Qd7 {[%clk 0:00:03.9]} 38. Qc3+ {[%clk 0:00:04.2]}
38... Kg6 {[%clk 0:00:02.6]} 39. Qxe1 {[%clk 0:00:04.5]} 39... g4 {[%clk
0:00:03.1]} 40. hxg4 {[%clk 0:00:04.3]} 40... hxg4 {[%clk 0:00:04]} 41. Qe4+
{[%clk 0:00:04.6]} 41... Kg7 {[%clk 0:00:03.1]} 42. Rf4 {[%clk 0:00:04.4]} 42...
Kf8 {[%clk 0:00:02]} 43. Rxg4 {[%clk 0:00:04.8]} 43... f5 {[%clk 0:00:01.8]} 44.
Rf4 {[%clk 0:00:05.3]} 1-0

[Event "*** SCC Grand Prix: Titled Tuesday Blitz"]
[Site "Chess.com"]
[Date "2020.08.04"]
[Round "6"]
[White "ElGasanov"]
[Black "Jospem"]
[Result "0-1"]
[WhiteElo "2781"]
[BlackElo "2932"]
[TimeControl "180+1"]
[EndTime "14:51:09 PDT"]
[Termination "Jospem won by resignation"]

1. Nf3 {[%clk 0:03:00.9]} 1... c5 {[%clk 0:02:59.3]} 2. c4 {[%clk 0:02:59.3]}
2... Nf6 {[%clk 0:02:57.5]} 3. Nc3 {[%clk 0:02:57.9]} 3... e6 {[%clk 0:02:56.8]}
4. e3 {[%clk 0:02:57.6]} 4... Be7 {[%clk 0:02:44.6]} 5. d4 {[%clk 0:02:57.8]}
5... cxd4 {[%clk 0:02:45.1]} 6. exd4 {[%clk 0:02:55.2]} 6... d5 {[%clk
0:02:45.1]} 7. c5 {[%clk 0:02:41.2]} 7... O-O {[%clk 0:02:29.8]} 8. Bd3 {[%clk
0:02:35.7]} 8... b6 {[%clk 0:02:29.5]} 9. cxb6 {[%clk 0:02:33.3]} 9... axb6
{[%clk 0:02:20.7]} 10. O-O {[%clk 0:02:31.4]} 10... Ba6 {[%clk 0:02:20.1]} 11.
Nb5 {[%clk 0:02:27]} 11... Nc6 {[%clk 0:02:17.6]} 12. Re1 {[%clk 0:02:21.9]}
12... Qd7 {[%clk 0:02:14.3]} 13. Bf4 {[%clk 0:02:15.5]} 13... Rfc8 {[%clk
0:02:14.3]} 14. a3 {[%clk 0:02:03.5]} 14... Na5 {[%clk 0:01:58.7]} 15. Ne5
{[%clk 0:02:00]} 15... Qe8 {[%clk 0:01:58.6]} 16. Qe2 {[%clk 0:01:50.4]} 16...
Nb3 {[%clk 0:01:17.9]} 17. Rad1 {[%clk 0:01:50.3]} 17... Ne4 {[%clk 0:01:13.7]}
18. f3 {[%clk 0:01:35.4]} 18... Nf6 {[%clk 0:01:14]} 19. g4 {[%clk 0:01:05.4]}
19... Nd7 {[%clk 0:01:13.7]} 20. Kh1 {[%clk 0:00:49.7]} 20... Bf8 {[%clk
0:01:09]} 21. g5 {[%clk 0:00:46.5]} 21... Nxe5 {[%clk 0:00:52.4]} 22. Bxe5
{[%clk 0:00:44.5]} 22... Qd7 {[%clk 0:00:52.6]} 23. Rg1 {[%clk 0:00:35.9]} 23...
Na5 {[%clk 0:00:44.3]} 24. Rc1 {[%clk 0:00:28]} 24... Nc4 {[%clk 0:00:35.5]} 25.
Nc7 {[%clk 0:00:22.1]} 25... Rxc7 {[%clk 0:00:31.7]} 26. Bxc7 {[%clk 0:00:21.4]}
26... Qxc7 {[%clk 0:00:32.2]} 27. b3 {[%clk 0:00:21.6]} 27... b5 {[%clk
0:00:32.7]} 28. a4 {[%clk 0:00:19.5]} 28... Rc8 {[%clk 0:00:19.4]} 29. axb5
{[%clk 0:00:19.2]} 29... Bxb5 {[%clk 0:00:20.3]} 30. bxc4 {[%clk 0:00:19.5]}
30... dxc4 {[%clk 0:00:21]} 31. Be4 {[%clk 0:00:18.3]} 31... g6 {[%clk
0:00:19.6]} 32. Qe3 {[%clk 0:00:17.9]} 32... Bd6 {[%clk 0:00:19]} 33. Rc2 {[%clk
0:00:18.3]} 33... Bf4 {[%clk 0:00:18.5]} 34. Qa3 {[%clk 0:00:18.4]} 34... Qd8
{[%clk 0:00:17.3]} 35. Qb2 {[%clk 0:00:16.8]} 35... Rb8 {[%clk 0:00:17.3]} 36.
Qc3 {[%clk 0:00:13.7]} 36... Bxg5 {[%clk 0:00:15.6]} 37. d5 {[%clk 0:00:13.4]}
37... exd5 {[%clk 0:00:14.4]} 38. Rd1 {[%clk 0:00:13.2]} 38... Bf6 {[%clk
0:00:12.6]} 39. Qe1 {[%clk 0:00:10]} 39... d4 {[%clk 0:00:12.8]} 40. Qg3 {[%clk
0:00:10]} 40... d3 {[%clk 0:00:12.7]} 41. Rg2 {[%clk 0:00:08.8]} 41... Ba4
{[%clk 0:00:11.6]} 42. Rdg1 {[%clk 0:00:07.5]} 42... Be8 {[%clk 0:00:09.6]} 43.
Qf4 {[%clk 0:00:05.7]} 43... Rb5 {[%clk 0:00:08.6]} 44. h3 {[%clk 0:00:04.1]}
44... Rh5 {[%clk 0:00:08.6]} 45. Kh2 {[%clk 0:00:03.9]} 45... Be5 {[%clk
0:00:09.2]} 0-1